fUSD/lending_fUSD_20260228
["ID","MTS","AMOUNT","RATE_DAILY","PERIOD"]
[406880547,1772263851031,-918.45,0.00017999,2]
[406880548,1772263851041,-918.45,0.00017999,2]
[406880549,1772263851050,-918.45,0.00017999,2]
[406880550,1772263851060,-918.45,0.00017999,2]
[406880551,1772263851069,-918.55521615,0.00017999,2]
[406880552,1772263851079,-500.0,0.00017999,2]
[406880553,1772263851088,-439.79063626,0.00017999,2]
[406880554,1772263851098,-500.0,0.00017999,2]
[406880555,1772263851107,-500.0,0.00017999,2]
[406880556,1772263851117,-500.0,0.00017999,2]
[406880557,1772263851126,-500.0,0.00017999,2]
[406880558,1772263851137,-500.0,0.00017999,2]
[406880559,1772263851146,-500.0,0.00017999,2]
[406880560,1772263851156,-500.0,0.00017999,2]
[406880561,1772263851166,-500.0,0.00017999,2]
[406880562,1772263851175,-180.4202576,0.00017999,2]
[406880563,1772263851185,-75242.30617489,0.00018,2]
[406880564,1772263851199,-89542.40585105,0.00018,2]
[406880565,1772263851213,-69883.07426724,0.00018,2]
[406880566,1772263851247,-358.74492914,8.773e-05,2]
[406880567,1772263851257,-2192.76896934,0.00018,2]
[406880568,1772263851366,-18589.99999999,0.00018,2]
[406880569,1772263851381,-407.0,0.00018,2]
[406880586,1772264226506,155.91,0.00017,120]
[406880587,1772264323591,10000.0,0.000153,90]
[406880588,1772264346192,10000.0,0.000153,90]
[406880589,1772264365573,10000.0,0.0001707,120]
[406880620,1772264386759,833.34215125,0.000121,60]
[406880621,1772264386786,2100.0,0.000121,60]
[406880622,1772264386811,2100.0,0.000121,60]
[406880623,1772264386831,4966.65784875,0.000121,60]
[406880624,1772264397263,-246.0,0.00046252,30]
[406880625,1772264397292,-151.0,0.00046252,60]
[406880626,1772264397317,-164.94102709,0.00046252,120]
[406880627,1772264397341,-205.80114676,0.00046252,120]
[406880628,1772264397366,-500.0,0.00046252,120]
[406880629,1772264397390,-611.0,0.00046252,120]
[406880630,1772264397415,-282.08239593,0.00046252,60]
[406880631,1772264397443,-4999.999999,0.00046252,120]
[406880632,1772264397468,-159.17909743,0.00046252,120]
[406880633,1772264397491,-182.2772955,0.00046252,30]
[406880634,1772264397515,-180.7794277,0.00046252,120]
[406880635,1772264397539,-165.78174052,0.00046252,120]
[406880636,1772264397562,-386.24001559,0.00046252,120]
[406880637,1772264397586,-1921.42509132,0.00046252,30]
[406880638,1772264397610,-20110.58158524,0.00046252,120]
[406880639,1772264397635,-237424.38106748,0.00046252,30]
[406880640,1772264397660,-164.44245548,0.00046252,120]
[406880641,1772264397687,-164.42452389,0.00046252,30]
[406880642,1772264397714,-159.82153029,0.00046252,30]
[406880643,1772264397740,-3619.49953678,0.00046252,30]
[406880644,1772264397764,-154.25929454,0.00046252,120]
[406880645,1772264397788,-20886.1357289,0.00046252,30]
[406880646,1772264397813,-801.64806914,0.00046252,120]
[406880647,1772264397838,-150.84128172,0.00046252,120]
[406880648,1772264397863,-455.73855669,0.00046252,30]
[406880649,1772264397887,-2436.77717372,0.00046252,30]
[406880650,1772264397912,-165.14987233,0.00046252,120]
[406880651,1772264397941,-4441.20037808,0.00046252,30]
[406880652,1772264397966,-2089.60533619,0.00046252,30]
[406880653,1772264397991,-377.49637441,0.00046252,120]
[406880654,1772264398015,-403.93692555,0.00046252,48]
[406880655,1772264398039,-9790.81218067,0.00046252,90]
[406880656,1772264398067,-250.0,0.00046252,120]
[406880657,1772264398091,-457.62,0.00046252,120]
[406880658,1772264398115,-15781.0,0.00046252,30]
[406880659,1772264398140,-2553.0,0.00046252,30]
[406880660,1772264398165,-1001664.69,0.00046252,30]
[406880661,1772264398192,-140596.94,0.00046252,120]
[406880662,1772264398215,-1027486.17727094,0.00046252,120]
[406880663,1772264398241,-425.92144494,0.00046252,120]
[406880664,1772264398266,-202.5753493,0.00046252,120]
[406880665,1772264398291,-5517.35615822,0.00046252,30]
[406880666,1772264398316,-5000.0,0.00046252,120]
[406880667,1772264398341,-4083.0,0.00046252,30]
[406880668,1772264398365,-13354.8814709,0.00046252,120]
[406880669,1772264398390,-52137.18127693,0.00046252,60]
[406880670,1772264398586,12800.54927245,0.00046252,30]
[406880671,1772264398617,20262.57571961,0.00046252,30]
[406880672,1772264398649,510.57,0.000121,60]
[406880673,1772264402461,6323.07,0.000153,90]
[406880758,1772264410265,500.0,0.00046252,120]
[406880765,1772264410551,262.89756598,0.00046252,120]
[406880767,1772264410596,1234.0,0.00046252,120]
[406880769,1772264410629,258.5214729,0.00046252,120]
[406880770,1772264410664,500.0,0.00046252,120]
[406880776,1772264410899,500.0,0.00046252,120]
[406880781,1772264411060,151.0,0.00046252,120]
[406880783,1772264411113,5018.36116075,0.00046252,30]
[406880787,1772264411250,1234.0,0.00046252,120]
[406880791,1772264411381,500.0,0.00046252,120]
[406880795,1772264411567,500.0,0.00046252,120]
[406880800,1772264411736,156.587,0.00046252,120]
[406880803,1772264411879,1234.0,0.00046252,120]
[406880807,1772264412033,500.0,0.00046252,120]
[406880811,1772264412171,500.0,0.00046252,120]
[406880818,1772264412460,162.380719,0.00046252,120]
[406880821,1772264412552,1234.0,0.00046252,120]
[406880824,1772264412679,500.0,0.00046252,120]
[406880827,1772264412780,500.0,0.00046252,120]
[406880830,1772264413071,162.380719,0.00046252,120]
[406880834,1772264413214,1234.0,0.00046252,120]
[406880837,1772264413324,500.0,0.00046252,120]
[406880840,1772264413439,500.0,0.00046252,120]
[406880843,1772264413552,500.0,0.00046252,120]
[406880853,1772264413987,500.0,0.00046252,120]
[406880854,1772264414021,151.0,0.00046252,120]
[406880856,1772264414056,500.0,0.00046252,120]
[406880858,1772264414085,500.0,0.00046252,120]
[406880861,1772264414217,500.0,0.00046252,120]
[406880871,1772264414672,500.0,0.00046252,120]
[406880874,1772264414732,151.0,0.00046252,120]
[406880875,1772264414773,500.0,0.00046252,120]
[406880877,1772264414803,500.0,0.00046252,120]
[406880879,1772264414868,500.0,0.00046252,120]
[406880890,1772264415351,151.0,0.00046252,120]
[406880893,1772264415404,500.0,0.00046252,120]
[406880894,1772264415438,500.0,0.00046252,120]
[406880898,1772264415551,251.0,0.00046252,120]
[406880909,1772264416044,500.0,0.00046252,120]
[406880910,1772264416076,500.0,0.00046252,120]
[406880914,1772264416211,251.0,0.00046252,120]
[406880922,1772264416558,151.0,0.00046252,120]
[406880925,1772264416693,500.0,0.00046252,120]
[406880927,1772264416739,500.0,0.00046252,120]
[406880935,1772264417146,232.4483266,0.00046252,120]
[406880940,1772264417382,500.0,0.00046252,120]
[406880941,1772264417419,151.0,0.00046252,120]
[406880944,1772264417535,500.0,0.00046252,120]
[406880950,1772264418021,500.0,0.00046252,120]
[406880952,1772264418062,151.0,0.00046252,120]
[406880955,1772264418184,500.0,0.00046252,120]
[406880964,1772264418667,500.0,0.00046252,120]
[406880965,1772264418703,151.0,0.00046252,120]
[406880971,1772264419012,500.0,0.00046252,120]
[406880977,1772264419336,151.0,0.00046252,120]
[406880979,1772264419370,621.92671497,0.00046252,120]
[406880980,1772264419405,500.0,0.00046252,120]
[406880985,1772264419606,265.21792765,0.00046252,120]
[406880989,1772264419824,250.0,0.00046252,120]
[406880991,1772264419887,1234.0,0.00046252,120]
[406880993,1772264419951,151.0,0.00046252,120]
[406880997,1772264420233,151.0,0.00046252,120]
[406881002,1772264420540,250.0,0.00046252,120]
[406881006,1772264420733,151.0,0.00046252,120]
[406881013,1772264421195,250.0,0.00046252,120]
[406881015,1772264421288,500.0,0.00046252,120]
[406881016,1772264421327,151.0,0.00046252,120]
[406881023,1772264421810,151.0,0.00046252,120]
[406881024,1772264421849,250.0,0.00046252,120]
[406881026,1772264421912,500.0,0.00046252,120]
[406881028,1772264421961,151.0,0.00046252,120]
[406881031,1772264422092,6888.0,0.00046252,120]
[406881037,1772264422491,151.0,0.00046252,120]
[406881038,1772264422537,250.0,0.00046252,120]
[406881040,1772264422594,500.0,0.00046252,120]
[406881042,1772264422672,151.0,0.00046252,120]
[406881050,1772264423207,250.0,0.00046252,120]
[406881051,1772264423255,151.0,0.00046252,120]
[406881053,1772264423295,500.0,0.00046252,120]
[406881054,1772264423339,151.0,0.00046252,120]
[406881063,1772264423864,250.0,0.00046252,120]
[406881064,1772264423900,151.0,0.00046252,120]
[406881067,1772264423986,151.0,0.00046252,120]
[406881069,1772264424039,268.13012185,0.00046252,120]
[406881073,1772264424382,500.0,0.00046252,120]
[406881075,1772264424449,151.0,0.00046252,120]
[406881076,1772264424500,250.0,0.00046252,120]
[406881078,1772264424535,151.0,0.00046252,120]
[406881094,1772264425376,151.0,0.00046252,120]
[406881096,1772264425409,151.0,0.00046252,120]
[406881109,1772264426054,151.0,0.00046252,120]
[406881119,1772264426485,151.0,0.00046252,120]
[406881125,1772264426728,151.0,0.00046252,120]
[406881133,1772264427101,151.0,0.00046252,120]
[406881139,1772264427358,151.0,0.00046252,120]
[406881148,1772264427726,151.0,0.00046252,120]
[406881153,1772264428006,151.0,0.00046252,120]
[406881155,1772264428037,206.79812501,0.00046252,120]
[406881165,1772264428527,151.0,0.00046252,120]
[406881169,1772264428687,151.0,0.00046252,120]
[406881173,1772264428859,151.0,0.00046252,120]
[406881180,1772264429369,151.0,0.00046252,120]
[406881185,1772264429551,151.0,0.00046252,120]
[406881196,1772264430035,151.0,0.00046252,120]
[406881210,1772264430719,151.0,0.00046252,120]
[406881224,1772264431359,151.0,0.00046252,120]
[406881242,1772264432236,151.0,0.00046252,120]
[406881254,1772264432753,151.0,0.00046252,120]
[406881267,1772264433411,151.0,0.00046252,120]
[406881277,1772264434027,500.0,0.00046252,120]
[406881283,1772264434321,151.0,0.00046252,120]
[406881292,1772264434670,518.5,0.00046252,120]
[406881300,1772264434997,151.0,0.00046252,120]
[406881307,1772264435325,537.6845,0.00046252,120]
[406881314,1772264435646,151.0,0.00046252,120]
[406881323,1772264436021,557.5788265,0.00046252,120]
[406881329,1772264436295,151.0,0.00046252,120]
[406881338,1772264436683,578.20924308,0.00046252,120]
[406881353,1772264437374,599.60298507,0.00046252,120]
[406881366,1772264438022,621.78829552,0.00046252,120]
[406881379,1772264438679,644.79446246,0.00046252,120]
[406881394,1772264439312,668.65185757,0.00046252,120]
[406881409,1772264439981,693.3919763,0.00046252,120]
[406881423,1772264440624,719.04747942,0.00046252,120]
[406881438,1772264441280,745.65223616,0.00046252,120]
[406881458,1772264442323,500.0,0.00046252,120]
[406881460,1772264442450,773.2413689,0.00046252,120]
[406881474,1772264443057,500.0,0.00046252,120]
[406881476,1772264443121,801.85129955,0.00046252,120]
[406881488,1772264443770,500.0,0.00046252,120]
[406881494,1772264443996,831.51979763,0.00046252,120]
[406881503,1772264444390,500.0,0.00046252,120]
[406881517,1772264445033,500.0,0.00046252,120]
[406881520,1772264445130,862.28603014,0.00046252,120]
[406881531,1772264445671,500.0,0.00046252,120]
[406881534,1772264445789,894.19061326,0.00046252,120]
[406881547,1772264446439,927.27566595,0.00046252,120]
[406881548,1772264446818,500.0,0.00046252,120]
[406881549,1772264447088,961.58486559,0.00046252,120]
[406881550,1772264447459,500.0,0.00046252,120]
[406881551,1772264447746,961.58486559,0.00046252,120]
[406881553,1772264448094,500.0,0.00046252,120]
[406881555,1772264448724,500.0,0.00046252,120]
[406881562,1772264449398,500.0,0.00046252,120]
[406881569,1772264450017,500.0,0.00046252,120]
[406881571,1772264450672,500.0,0.00046252,120]
[406881572,1772264451419,500.0,0.00046252,120]
[406881573,1772264452006,500.0,0.00046252,120]
[406881574,1772264452676,500.0,0.00046252,120]
[406881575,1772264453341,500.0,0.00046252,120]
[406881576,1772264454045,500.0,0.00046252,120]
[406881577,1772264454779,500.0,0.00046252,120]
[406881579,1772264455405,500.0,0.00046252,120]
[406881587,1772264462908,2059.0,0.00014003,90]
[406881604,1772264476403,-3676.93,0.000153,90]
[406881605,1772264476449,-181.62003642,0.000202,30]
[406881606,1772264476476,-171.33,0.00021918,30]
[406881607,1772264476505,-257.259889,0.0002603,30]
[406881608,1772264476534,-167.21,0.00029028,30]
[406881610,1772264476559,-1199.49426713,0.0003,30]
[406881611,1772264476583,-1000.0,0.0003,120]
[406881612,1772264476607,-1000.0,0.0003,120]
[406881613,1772264476633,-1000.0,0.0003,120]
[406881614,1772264476665,-1000.0,0.0003,30]
[406881615,1772264476692,-220.46,0.000303,30]
[406881617,1772264476718,-133995.7482714,0.00032,120]
[406881618,1772264476747,-160.0,0.00032,120]
[406881619,1772264476774,-2000.0,0.00032877,120]
[406881620,1772264476800,-2000.0,0.00032877,120]
[406881621,1772264476827,-2000.0,0.00032877,120]
[406881623,1772264476853,-2000.0,0.00032877,120]
[406881624,1772264476879,-2000.0,0.00032877,120]
[406881625,1772264476905,-1356.0,0.00032877,120]
[406881626,1772264476932,-17389.3870886,0.00033,120]
[406881627,1772264476958,-151.0,0.00033,31]
[406881628,1772264476984,-151.0,0.00033,31]
[406881629,1772264477011,-223.876519,0.00033,31]
[406881630,1772264477038,-1322.38916055,0.00033391,30]
[406881632,1772264477066,-518.50594974,0.00033939,60]
[406881633,1772264477098,-151.0,0.0003395,31]
[406881634,1772264477126,-263.314642,0.0003395,31]
[406881635,1772264477154,-263.314642,0.0003395,31]
[406881637,1772264477180,-263.314642,0.0003395,31]
[406881638,1772264477207,-263.314642,0.0003395,31]
[406881639,1772264477235,-151.0,0.0003395,31]
[406881640,1772264477266,-151.0,0.0003395,31]
[406881641,1772264477292,-151.0,0.0003395,31]
[406881642,1772264477318,-151.0,0.0003395,31]
[406881643,1772264477345,-151.0,0.0003395,31]
[406881644,1772264477372,-557.0,0.00034997,30]
[406881646,1772264477398,-881.0,0.00034997,30]
[406881647,1772264477423,-1000.0,0.00035,30]
[406881648,1772264477449,-151.0,0.00035,31]
[406881649,1772264477475,-151.0,0.00035,31]
[406881651,1772264477502,-169.0,0.00036,30]
[406881652,1772264477533,-301.55,0.000365,30]
[406881653,1772264477560,-15500.60783073,0.00036565,30]
[406881654,1772264477585,-160.0,0.00037,30]
[406881655,1772264477611,-188.31057902,0.000372,120]
[406881656,1772264477637,-1145.0,0.00038,30]
[406881658,1772264477861,-165.0,0.00038,90]
[406881660,1772264477891,-263.0,0.00038,30]
[406881661,1772264477916,-5708.57,0.00038034,30]
[406881662,1772264477944,-285.36477225,0.000381,33]
[406881663,1772264477969,-263.0,0.0003863,90]
[406881664,1772264477997,-500.0,0.000387,120]
[406881665,1772264478023,-1579.8181625,0.00039,120]
[406881667,1772264478049,-1040.5,0.00039455,30]
[406881668,1772264478079,-155.0,0.0004,120]
[406881669,1772264478103,-342.29,0.0004,120]
[406881670,1772264478132,-157.0,0.0004,120]
[406881671,1772264478161,-18863.28661172,0.0004,120]
[406881672,1772264478186,-585.47748497,0.0004,120]
[406881673,1772264478211,-1000.0,0.0004,30]
[406881674,1772264478237,-330.63,0.0004,120]
[406881675,1772264478262,-198.03,0.0004,120]
[406881676,1772264478289,-2500.0,0.0004,120]
[406881677,1772264478315,-366.88,0.0004,120]
[406881678,1772264478342,-705.05,0.0004,120]
[406881679,1772264478368,-324.11,0.0004,120]
[406881680,1772264478393,-15000.0,0.0004,120]
[406881681,1772264478419,-642.31,0.0004,120]
[406881682,1772264478444,-1216.35,0.0004,120]
[406881683,1772264478470,-1310.59,0.0004,120]
[406881684,1772264478499,-944.0,0.00040252,120]
[406881685,1772264478525,-263.0,0.00040274,90]
[406881686,1772264478551,-15000.0,0.000403,120]
[406881687,1772264478577,-1040.5,0.00040353,30]
[406881688,1772264478601,-2500.0,0.000405,120]
[406881689,1772264478626,-15000.0,0.000406,120]
[406881690,1772264478652,-1115.196,0.00040774,59]
[406881691,1772264478678,-15000.0,0.000409,120]
[406881692,1772264478708,-17005.38540772,0.00040977,30]
[406881693,1772264478737,-3174.92828592,0.00041,30]
[406881694,1772264478764,-1451.0,0.00041,120]
[406881695,1772264478789,-157.92872241,0.00041,120]
[406881697,1772264478815,-2500.0,0.00041,120]
[406881698,1772264478841,-300.0,0.00041096,30]
[406881700,1772264478867,-300.0,0.00041096,30]
[406881701,1772264478891,-300.0,0.00041096,30]
[406881702,1772264478916,-300.0,0.00041096,30]
[406881703,1772264478943,-300.0,0.00041096,30]
[406881705,1772264478968,-300.0,0.00041096,30]
[406881706,1772264478994,-300.0,0.00041096,30]
[406881707,1772264479019,-300.0,0.00041096,30]
[406881709,1772264479046,-300.0,0.00041096,30]
[406881710,1772264479075,-300.0,0.00041096,30]
[406881712,1772264479099,-300.0,0.00041096,30]
[406881713,1772264479125,-300.0,0.00041096,30]
[406881714,1772264479152,-300.0,0.00041096,30]
[406881715,1772264479176,-300.0,0.00041096,30]
[406881716,1772264479201,-300.0,0.00041096,30]
[406881718,1772264479226,-300.0,0.00041096,30]
[406881719,1772264479254,-300.0,0.00041096,30]
[406881720,1772264479279,-300.0,0.00041096,30]
[406881721,1772264479305,-300.0,0.00041096,30]
[406881723,1772264479330,-300.0,0.00041096,30]
[406881724,1772264479355,-300.0,0.00041096,30]
[406881725,1772264479380,-300.0,0.00041096,30]
[406881727,1772264479406,-300.0,0.00041096,30]
[406881728,1772264479433,-300.0,0.00041096,30]
[406881729,1772264479460,-300.0,0.00041096,30]
[406881731,1772264479490,-300.0,0.00041096,30]
[406881732,1772264479517,-300.0,0.00041096,30]
[406881733,1772264479545,-300.0,0.00041096,30]
[406881734,1772264479570,-300.0,0.00041096,30]
[406881735,1772264479596,-300.0,0.00041096,30]
[406881737,1772264479622,-300.0,0.00041096,30]
[406881738,1772264479648,-300.0,0.00041096,30]
[406881739,1772264479676,-300.0,0.00041096,30]
[406881740,1772264479704,-300.0,0.00041096,30]
[406881741,1772264479735,-300.0,0.00041096,30]
[406881743,1772264479763,-300.0,0.00041096,30]
[406881744,1772264479789,-300.0,0.00041096,30]
[406881745,1772264479815,-300.0,0.00041096,30]
[406881746,1772264479841,-300.0,0.00041096,30]
[406881747,1772264479869,-300.0,0.00041096,30]
[406881748,1772264479895,-300.0,0.00041096,30]
[406881750,1772264479921,-300.0,0.00041096,30]
[406881751,1772264479947,-300.0,0.00041096,30]
[406881752,1772264479973,-300.0,0.00041096,30]
[406881753,1772264479999,-300.0,0.00041096,30]
[406881754,1772264480026,-300.0,0.00041096,30]
[406881756,1772264480052,-300.0,0.00041096,30]
[406881757,1772264480080,-300.0,0.00041096,30]
[406881758,1772264480108,-300.0,0.00041096,30]
[406881759,1772264480136,-300.0,0.00041096,30]
[406881760,1772264480164,-300.0,0.00041096,30]
[406881761,1772264480193,-300.0,0.00041096,30]
[406881762,1772264480220,-300.0,0.00041096,30]
[406881764,1772264480246,-300.0,0.00041096,30]
[406881765,1772264480274,-300.0,0.00041096,30]
[406881766,1772264480303,-300.0,0.00041096,30]
[406881767,1772264480333,-300.0,0.00041096,30]
[406881768,1772264480361,-300.0,0.00041096,30]
[406881769,1772264480389,-300.0,0.00041096,30]
[406881770,1772264480417,-300.0,0.00041096,30]
[406881771,1772264480444,-300.0,0.00041096,30]
[406881772,1772264480472,-300.0,0.00041096,30]
[406881773,1772264480501,-300.0,0.00041096,30]
[406881774,1772264480528,-300.0,0.00041096,30]
[406881775,1772264480556,-300.0,0.00041096,30]
[406881776,1772264480716,-300.0,0.00041096,30]
[406881777,1772264480746,-300.0,0.00041096,30]
[406881778,1772264480774,-300.0,0.00041096,30]
[406881779,1772264480802,-300.0,0.00041096,30]
[406881780,1772264480829,-300.0,0.00041096,30]
[406881781,1772264480857,-300.0,0.00041096,30]
[406881782,1772264480885,-300.0,0.00041096,30]
[406881783,1772264480913,-300.0,0.00041096,30]
[406881784,1772264480941,-300.0,0.00041096,30]
[406881785,1772264480970,-300.0,0.00041096,30]
[406881786,1772264480998,-300.0,0.00041096,30]
[406881787,1772264481026,-300.0,0.00041096,30]
[406881788,1772264481054,-300.0,0.00041096,30]
[406881789,1772264481082,-300.0,0.00041096,30]
[406881790,1772264481109,-300.0,0.00041096,30]
[406881791,1772264481139,-300.0,0.00041096,30]
[406881792,1772264481167,-300.0,0.00041096,30]
[406881793,1772264481194,-300.0,0.00041096,30]
[406881794,1772264481221,-1515.38,0.00041096,120]
[406881795,1772264481249,-151.0,0.00041096,120]
[406881796,1772264481275,-151.0,0.00041096,120]
[406881797,1772264481300,-153.900455,0.00041096,120]
[406881798,1772264481326,-151.0,0.00041096,120]
[406881799,1772264481352,-151.0,0.00041096,120]
[406881800,1772264481377,-151.0,0.00041096,120]
[406881801,1772264481403,-175.102451,0.00041096,120]
[406881802,1772264481428,-156.760452,0.00041096,120]
[406881803,1772264481454,-151.0,0.00041096,120]
[406881804,1772264481480,-151.0,0.00041096,120]
[406881805,1772264481506,-153.79092,0.00041096,120]
[406881806,1772264481533,-458.48,0.00041096,120]
[406881807,1772264481559,-151.0,0.00041096,120]
[406881808,1772264481584,-152.029792,0.00041096,120]
[406881809,1772264481612,-154.260575,0.00041096,120]
[406881810,1772264481640,-169.35548,0.00041096,120]
[406881811,1772264481666,-175.93185,0.00041096,120]
[406881812,1772264481692,-151.0,0.00041096,120]
[406881813,1772264481718,-151.000026,0.00041096,120]
[406881814,1772264481745,-151.0,0.00041096,120]
[406881815,1772264481770,-157.76245,0.00041096,120]
[406881816,1772264481795,-151.0,0.00041096,120]
[406881817,1772264481819,-151.0,0.00041096,120]
[406881818,1772264481844,-154.007697,0.00041096,120]
[406881819,1772264481869,-151.0,0.00041096,120]
[406881820,1772264481895,-165.910097,0.00041096,120]
[406881821,1772264481920,-151.0,0.00041096,120]
[406881822,1772264481945,-151.0,0.00041096,120]
[406881823,1772264481971,-151.0,0.00041096,120]
[406881824,1772264481996,-173.236622,0.00041096,120]
[406881825,1772264482020,-151.0,0.00041096,120]
[406881826,1772264482045,-151.0,0.00041096,120]
[406881827,1772264482075,-151.0,0.00041096,120]
[406881828,1772264482100,-154.219567,0.00041096,120]
[406881829,1772264482127,-151.0,0.00041096,120]
[406881830,1772264482152,-275.536021,0.00041096,120]
[406881831,1772264482178,-151.0,0.00041096,120]
[406881832,1772264482202,-151.0,0.00041096,120]
[406881833,1772264482228,-151.0,0.00041096,120]
[406881834,1772264482262,-153.0,0.00041096,60]
[406881835,1772264482287,-171.357985,0.00041096,120]
[406881836,1772264482312,-169.0,0.00041096,120]
[406881837,1772264482337,-151.0,0.00041096,30]
[406881838,1772264482363,-151.0,0.00041096,30]
[406881839,1772264482389,-151.0,0.00041096,120]
[406881840,1772264482416,-151.0,0.00041096,120]
[406881841,1772264482457,-173.231703,0.00041096,120]
[406881842,1772264482490,-157.650392,0.00041096,120]
[406881843,1772264482518,-282.437129,0.00041096,120]
[406881844,1772264482544,-151.0,0.00041096,120]
[406881845,1772264482571,-151.0,0.00041096,120]
[406881846,1772264482596,-151.0,0.00041096,120]
[406881847,1772264482621,-172.727013,0.00041096,120]
[406881848,1772264482647,-288.242283,0.00041096,120]
[406881849,1772264482672,-151.0,0.00041096,120]
[406881850,1772264482697,-151.0,0.00041096,120]
[406881851,1772264482722,-151.0,0.00041096,120]
[406881852,1772264482749,-151.0,0.00041096,120]
[406881853,1772264482776,-162.98336,0.00041096,120]
[406881854,1772264482802,-151.0,0.00041096,120]
[406881855,1772264482830,-151.0,0.00041096,120]
[406881856,1772264482856,-151.0,0.00041096,120]
[406881857,1772264482882,-151.0,0.00041096,120]
[406881858,1772264482906,-151.0,0.00041096,120]
[406881859,1772264482931,-181.909619,0.00041096,120]
[406881860,1772264482957,-249.626333,0.00041096,120]
[406881861,1772264482982,-151.0,0.00041096,120]
[406881862,1772264483007,-176.157289,0.00041096,120]
[406881863,1772264483032,-151.0,0.00041096,120]
[406881864,1772264483058,-151.0,0.00041096,120]
[406881865,1772264483087,-151.0,0.00041096,120]
[406881866,1772264483113,-151.0,0.00041096,120]
[406881867,1772264483138,-152.468542,0.00041096,120]
[406881868,1772264483165,-151.0,0.00041096,30]
[406881869,1772264483190,-151.0,0.00041096,30]
[406881870,1772264483215,-155.049886,0.00041096,30]
[406881871,1772264483240,-151.0,0.00041096,120]
[406881872,1772264483265,-151.0,0.00041096,120]
[406881873,1772264483291,-167.83282,0.00041096,120]
[406881874,1772264483316,-152.783552,0.00041096,35]
[406881875,1772264483341,-151.0,0.00041096,120]
[406881876,1772264483366,-171.103435,0.00041096,120]
[406881878,1772264483391,-151.0,0.00041096,120]
[406881879,1772264483417,-151.0,0.00041096,120]
[406881880,1772264483443,-198.536775,0.00041096,120]
[406881881,1772264483470,-224.738789,0.00041096,120]
[406881882,1772264483623,-158.862434,0.00041096,60]
[406881883,1772264483651,-174.223406,0.00041096,120]
[406881884,1772264483678,-151.0,0.00041096,120]
[406881885,1772264483704,-157.889438,0.00041096,120]
[406881886,1772264483730,-151.0,0.00041096,120]
[406881888,1772264483756,-151.0,0.00041096,120]
[406881889,1772264483783,-151.0,0.00041096,120]
[406881890,1772264483809,-151.000004,0.00041096,120]
[406881891,1772264483833,-151.0,0.00041096,120]
[406881892,1772264483858,-194.685911,0.00041096,120]
[406881893,1772264483883,-151.0,0.00041096,120]
[406881894,1772264483909,-151.0,0.00041096,120]